[Event "*** Titled Tuesday Blitz"]
[Site "Chess.com"]
[Date "2020.04.21"]
[Round "4"]
[White "tufferguy"]
[Black "KingChess345"]
[Result "1-0"]
[WhiteElo "2394"]
[BlackElo "2082"]
[TimeControl "180+1"]
[EndTime "10:39:05 PDT"]
[Termination "tufferguy won by resignation"]

1. e4 {[%clk 0:03:00.9]} 1... c5 {[%clk 0:03:00.4]} 2. c3 {[%clk 0:03:00.4]}
2... d5 {[%clk 0:02:59.9]} 3. exd5 {[%clk 0:02:59.9]} 3... Qxd5 {[%clk
0:03:00.8]} 4. d4 {[%clk 0:02:59.8]} 4... Nf6 {[%clk 0:03:01.3]} 5. Nf3 {[%clk
0:02:59.5]} 5... Bg4 {[%clk 0:03:01.5]} 6. Be2 {[%clk 0:02:59.2]} 6... e6 {[%clk
0:03:01.8]} 7. h3 {[%clk 0:02:59.4]} 7... Bh5 {[%clk 0:03:01.1]} 8. Be3 {[%clk
0:02:59.3]} 8... cxd4 {[%clk 0:02:59.9]} 9. cxd4 {[%clk 0:03:00.2]} 9... Be7
{[%clk 0:02:59.8]} 10. Nc3 {[%clk 0:03:00.1]} 10... Qd6 {[%clk 0:02:59.6]} 11.
Qb3 {[%clk 0:02:58.5]} 11... Qb4 {[%clk 0:02:29.9]} 12. g4 {[%clk 0:02:57.7]}
12... Bg6 {[%clk 0:02:27.3]} 13. Ne5 {[%clk 0:02:56.5]} 13... O-O {[%clk
0:02:21.2]} 14. O-O {[%clk 0:02:03.2]} 14... Nbd7 {[%clk 0:01:28.2]} 15. g5
{[%clk 0:01:47.6]} 15... Nxe5 {[%clk 0:00:31.1]} 16. gxf6 {[%clk 0:01:31]} 16...
gxf6 {[%clk 0:00:20.6]} 17. Qxb4 {[%clk 0:01:26.9]} 17... Bxb4 {[%clk
0:00:18.7]} 18. dxe5 {[%clk 0:01:26.8]} 18... fxe5 {[%clk 0:00:19.6]} 19. Rac1
{[%clk 0:01:20.5]} 19... Rac8 {[%clk 0:00:18]} 20. Bxa7 {[%clk 0:01:10]} 20...
Rfd8 {[%clk 0:00:15.1]} 21. Be3 {[%clk 0:01:07]} 21... f6 {[%clk 0:00:15.3]} 22.
Rfd1 {[%clk 0:00:57.3]} 22... Kf7 {[%clk 0:00:15.2]} 23. a3 {[%clk 0:00:41]}
23... Bxc3 {[%clk 0:00:14.2]} 24. Rxd8 {[%clk 0:00:39.8]} 24... Rxd8 {[%clk
0:00:13.8]} 25. Rxc3 {[%clk 0:00:39.8]} 1-0

[Event "*** Titled Tuesday Blitz"]
[Site "Chess.com"]
[Date "2020.04.21"]
[Round "4"]
[White "cukin84"]
[Black "Kumi29"]
[Result "1/2-1/2"]
[WhiteElo "2135"]
[BlackElo "2396"]
[TimeControl "180+1"]
[EndTime "10:39:07 PDT"]
[Termination "Game drawn by agreement"]

1. e4 {[%clk 0:03:00.9]} 1... d5 {[%clk 0:02:56.8]} 2. exd5 {[%clk 0:02:59.5]}
2... Qxd5 {[%clk 0:02:57.7]} 3. Nc3 {[%clk 0:02:58.6]} 3... Qd8 {[%clk
0:02:58.3]} 4. d4 {[%clk 0:02:58.2]} 4... Nf6 {[%clk 0:02:58.8]} 5. Nf3 {[%clk
0:02:55.8]} 5... g6 {[%clk 0:02:59.2]} 6. Bc4 {[%clk 0:02:54.9]} 6... Bg7 {[%clk
0:02:59.4]} 7. Ne5 {[%clk 0:02:54.9]} 7... O-O {[%clk 0:02:59.1]} 8. O-O {[%clk
0:02:54.5]} 8... b6 {[%clk 0:02:58.1]} 9. Be3 {[%clk 0:02:49.3]} 9... Bb7 {[%clk
0:02:57.4]} 10. f3 {[%clk 0:02:47.5]} 10... e6 {[%clk 0:02:55.4]} 11. Bg5 {[%clk
0:02:44.3]} 11... h6 {[%clk 0:02:51.1]} 12. Bh4 {[%clk 0:02:37.7]} 12... Nc6
{[%clk 0:02:51.1]} 13. Nxc6 {[%clk 0:02:32.7]} 13... Bxc6 {[%clk 0:02:51.1]} 14.
Kh1 {[%clk 0:02:29.6]} 14... Qd6 {[%clk 0:02:30.4]} 15. Bg3 {[%clk 0:02:26.9]}
15... Qd7 {[%clk 0:02:26.9]} 16. Qd2 {[%clk 0:02:23]} 16... Kh7 {[%clk
0:02:24.2]} 17. Rad1 {[%clk 0:02:21.8]} 17... Rad8 {[%clk 0:02:23.3]} 18. Qe3
{[%clk 0:02:21]} 18... Nd5 {[%clk 0:02:19.8]} 19. Nxd5 {[%clk 0:02:19.2]} 19...
Bxd5 {[%clk 0:02:17.5]} 20. Bd3 {[%clk 0:02:15.8]} 20... Bb7 {[%clk 0:02:09.8]}
21. c3 {[%clk 0:02:14.9]} 21... Qe7 {[%clk 0:02:08.3]} 22. Bb1 {[%clk
0:02:06.8]} 22... Rd7 {[%clk 0:02:02.4]} 23. a4 {[%clk 0:02:02.2]} 23... a5
{[%clk 0:01:59.4]} 24. Bd3 {[%clk 0:01:56.3]} 24... Rfd8 {[%clk 0:01:58.1]} 25.
Bb5 {[%clk 0:01:56.3]} 25... c6 {[%clk 0:01:58.3]} 26. Bc4 {[%clk 0:01:54.5]}
26... Rc8 {[%clk 0:01:35]} 27. Bd3 {[%clk 0:01:48.8]} 27... c5 {[%clk
0:01:29.6]} 28. dxc5 {[%clk 0:01:46.1]} 28... Rxc5 {[%clk 0:01:26.7]} 29. Bb5
{[%clk 0:01:39.8]} 29... Rxd1 {[%clk 0:01:22.4]} 30. Rxd1 {[%clk 0:01:39.3]}
30... Bc6 {[%clk 0:01:13]} 31. Bd6 {[%clk 0:01:36.4]} 31... Qd7 {[%clk
0:01:05.8]} 32. Be2 {[%clk 0:01:27.7]} 32... Rd5 {[%clk 0:01:03.4]} 33. Rxd5
{[%clk 0:01:23.8]} 33... Bxd5 {[%clk 0:01:03.8]} 34. Qxb6 {[%clk 0:01:23.6]}
34... Qxa4 {[%clk 0:01:04.1]} 35. h3 {[%clk 0:01:21.4]} 35... Qa1+ {[%clk
0:01:03.8]} 36. Kh2 {[%clk 0:01:21.1]} 36... Qe1 {[%clk 0:01:00.4]} 37. Bd3
{[%clk 0:01:17.8]} 37... a4 {[%clk 0:00:56.2]} 38. Qc7 {[%clk 0:01:13.3]} 38...
Qd1 {[%clk 0:00:52.2]} 39. Bb5 {[%clk 0:01:00.2]} 1/2-1/2

[Event "*** Titled Tuesday Blitz"]
[Site "Chess.com"]
[Date "2020.04.21"]
[Round "4"]
[White "Omk124"]
[Black "Ind1anStar"]
[Result "1-0"]
[WhiteElo "2372"]
[BlackElo "2595"]
[TimeControl "180+1"]
[EndTime "10:39:08 PDT"]
[Termination "Omk124 won by resignation"]

1. e4 {[%clk 0:03:00.9]} 1... e6 {[%clk 0:02:59.9]} 2. d4 {[%clk 0:02:59.4]}
2... d5 {[%clk 0:02:59.2]} 3. Nd2 {[%clk 0:03:00.1]} 3... c5 {[%clk 0:02:56.4]}
4. exd5 {[%clk 0:02:59.8]} 4... Qxd5 {[%clk 0:02:56.5]} 5. Ngf3 {[%clk
0:02:59.9]} 5... cxd4 {[%clk 0:02:57.1]} 6. Bc4 {[%clk 0:03:00.4]} 6... Qd7
{[%clk 0:02:57.6]} 7. O-O {[%clk 0:03:00.8]} 7... Nc6 {[%clk 0:02:57.8]} 8. Nb3
{[%clk 0:03:01]} 8... a6 {[%clk 0:02:56.8]} 9. a4 {[%clk 0:03:00.6]} 9... Nf6
{[%clk 0:02:54.4]} 10. Qe2 {[%clk 0:03:00.8]} 10... Qc7 {[%clk 0:02:53.2]} 11.
Rd1 {[%clk 0:03:01.4]} 11... Bd6 {[%clk 0:02:53.3]} 12. Nbxd4 {[%clk 0:02:58.2]}
12... Nxd4 {[%clk 0:02:50.8]} 13. Rxd4 {[%clk 0:02:58.6]} 13... Bd7 {[%clk
0:02:50.9]} 14. Bg5 {[%clk 0:02:57.3]} 14... O-O-O {[%clk 0:02:42.3]} 15. Rad1
{[%clk 0:02:57.3]} 15... Bc6 {[%clk 0:02:41.4]} 16. h3 {[%clk 0:02:55]} 16...
Kb8 {[%clk 0:02:29.7]} 17. Qd2 {[%clk 0:02:51]} 17... Bxf3 {[%clk 0:02:13]} 18.
gxf3 {[%clk 0:02:50.4]} 18... Bh2+ {[%clk 0:02:11.6]} 19. Kg2 {[%clk 0:02:50.5]}
19... Rxd4 {[%clk 0:02:09.6]} 20. Qxd4 {[%clk 0:02:50]} 20... Be5 {[%clk
0:02:09.4]} 21. Qd3 {[%clk 0:02:38.5]} 21... Rc8 {[%clk 0:02:07.5]} 22. b3
{[%clk 0:02:36.5]} 22... Nh5 {[%clk 0:01:51.7]} 23. Qd7 {[%clk 0:02:15.8]} 23...
Qc5 {[%clk 0:01:13.9]} 24. Qxf7 {[%clk 0:02:08.6]} 24... Bg3 {[%clk 0:01:13]}
25. fxg3 {[%clk 0:02:03.9]} 25... Qxg5 {[%clk 0:01:12.9]} 26. g4 {[%clk
0:01:48.2]} 26... Nf4+ {[%clk 0:01:12.7]} 27. Kg3 {[%clk 0:01:47.4]} 27... e5
{[%clk 0:01:12.8]} 28. h4 {[%clk 0:01:44]} 28... Qh6 {[%clk 0:00:57.8]} 29. Rd7
{[%clk 0:01:41.3]} 29... Qb6 {[%clk 0:00:57.1]} 30. Rd1 {[%clk 0:01:30.7]} 30...
Rc7 {[%clk 0:00:43.6]} 31. Qe8+ {[%clk 0:01:18.9]} 31... Ka7 {[%clk 0:00:43.8]}
32. Qxe5 {[%clk 0:01:19.5]} 32... Ng6 {[%clk 0:00:43.8]} 33. Qd4 {[%clk
0:01:19.2]} 33... Rc5 {[%clk 0:00:43.4]} 34. h5 {[%clk 0:01:11.1]} 34... Qc7+
{[%clk 0:00:37.7]} 35. f4 {[%clk 0:01:09.8]} 1-0

[Event "*** Titled Tuesday Blitz"]
[Site "Chess.com"]
[Date "2020.04.21"]
[Round "4"]
[White "smshk35"]
[Black "GmSergioBarrientos"]
[Result "0-1"]
[WhiteElo "2341"]
[BlackElo "2572"]
[TimeControl "180+1"]
[EndTime "10:39:08 PDT"]
[Termination "GmSergioBarrientos won by checkmate"]

1. e4 {[%clk 0:03:00.9]} 1... c5 {[%clk 0:02:59.6]} 2. Nf3 {[%clk 0:02:59.4]}
2... d6 {[%clk 0:02:59.5]} 3. d4 {[%clk 0:02:56.7]} 3... Nf6 {[%clk 0:02:59.1]}
4. Nc3 {[%clk 0:02:53.5]} 4... cxd4 {[%clk 0:02:59.1]} 5. Nxd4 {[%clk
0:02:54.4]} 5... g6 {[%clk 0:02:58.9]} 6. Be3 {[%clk 0:02:54]} 6... a6 {[%clk
0:02:58.2]} 7. f3 {[%clk 0:02:50.8]} 7... Nbd7 {[%clk 0:02:57.9]} 8. Qd2 {[%clk
0:02:50.5]} 8... Bg7 {[%clk 0:02:58.2]} 9. h4 {[%clk 0:02:49.6]} 9... b5 {[%clk
0:02:57]} 10. h5 {[%clk 0:02:45.6]} 10... Rg8 {[%clk 0:02:55.8]} 11. hxg6 {[%clk
0:02:44.9]} 11... hxg6 {[%clk 0:02:56.7]} 12. O-O-O {[%clk 0:02:39]} 12... Bb7
{[%clk 0:02:56.7]} 13. Kb1 {[%clk 0:02:35.9]} 13... Rc8 {[%clk 0:02:55.9]} 14.
g4 {[%clk 0:02:30.8]} 14... Ne5 {[%clk 0:02:55.9]} 15. g5 {[%clk 0:02:28.9]}
15... Nxf3 {[%clk 0:02:53.8]} 16. Nxf3 {[%clk 0:02:22.1]} 16... Nxe4 {[%clk
0:02:53.8]} 17. Nxe4 {[%clk 0:02:18.4]} 17... Bxe4 {[%clk 0:02:54.7]} 18. Rc1
{[%clk 0:01:47]} 18... Bxf3 {[%clk 0:02:52.8]} 19. Rh7 {[%clk 0:01:47.3]} 19...
Qd7 {[%clk 0:02:47.5]} 20. Bh3 {[%clk 0:01:40.9]} 20... Bg4 {[%clk 0:02:45.7]}
21. Rxg7 {[%clk 0:01:39.6]} 21... Rxg7 {[%clk 0:02:44.1]} 22. Qd4 {[%clk
0:01:39.9]} 22... Bxh3 {[%clk 0:02:36.8]} 23. Qxg7 {[%clk 0:01:39.5]} 23... Qe6
{[%clk 0:02:34.6]} 24. Re1 {[%clk 0:01:25.4]} 24... Bf5 {[%clk 0:02:32.7]} 25.
Bd2 {[%clk 0:01:09.4]} 25... Qd5 {[%clk 0:01:58]} 26. Bc3 {[%clk 0:00:52.6]}
26... Be6 {[%clk 0:01:42.9]} 27. a3 {[%clk 0:00:35.6]} 27... Kd7 {[%clk
0:01:42.4]} 28. Qh7 {[%clk 0:00:21.9]} 28... a5 {[%clk 0:01:38.6]} 29. Qh4
{[%clk 0:00:20.6]} 29... Rc4 {[%clk 0:01:33]} 30. Qf2 {[%clk 0:00:19.2]} 30...
b4 {[%clk 0:01:31.2]} 31. axb4 {[%clk 0:00:17.4]} 31... axb4 {[%clk 0:01:32.1]}
32. Qa7+ {[%clk 0:00:15.8]} 32... Kc8 {[%clk 0:01:21.7]} 33. Bd2 {[%clk
0:00:04.7]} 33... Qxd2 {[%clk 0:01:11.6]} 34. Rh1 {[%clk 0:00:04.7]} 34... Qxc2+
{[%clk 0:01:08.9]} 35. Ka1 {[%clk 0:00:04.7]} 35... Qc1+ {[%clk 0:01:08.9]} 36.
Rxc1 {[%clk 0:00:04.5]} 36... Rxc1# {[%clk 0:01:09]} 0-1

[Event "*** Titled Tuesday Blitz"]
[Site "Chess.com"]
[Date "2020.04.21"]
[Round "4"]
[White "CalinGheorghiu"]
[Black "Kawhi_Leonard2"]
[Result "1/2-1/2"]
[WhiteElo "2469"]
[BlackElo "2307"]
[TimeControl "180+1"]
[EndTime "10:39:08 PDT"]
[Termination "Game drawn by repetition"]

1. e4 {[%clk 0:03:00.9]} 1... c5 {[%clk 0:02:59.7]} 2. Nf3 {[%clk 0:03:00]} 2...
d6 {[%clk 0:02:59.9]} 3. d4 {[%clk 0:02:59.4]} 3... cxd4 {[%clk 0:03:00.2]} 4.
Nxd4 {[%clk 0:03:00]} 4... Nf6 {[%clk 0:03:00.7]} 5. Nc3 {[%clk 0:03:00.5]} 5...
g6 {[%clk 0:03:01.3]} 6. f3 {[%clk 0:02:59.4]} 6... Bg7 {[%clk 0:03:01.5]} 7.
Be3 {[%clk 0:02:59.9]} 7... Nc6 {[%clk 0:03:01.3]} 8. Qd2 {[%clk 0:02:59.2]}
8... O-O {[%clk 0:03:01.9]} 9. Bc4 {[%clk 0:02:59.1]} 9... Bd7 {[%clk
0:03:01.3]} 10. Bb3 {[%clk 0:02:59.1]} 10... Rc8 {[%clk 0:03:00.7]} 11. O-O-O
{[%clk 0:02:59.2]} 11... Nxd4 {[%clk 0:03:00]} 12. Bxd4 {[%clk 0:02:54.3]} 12...
b5 {[%clk 0:03:00.6]} 13. Nd5 {[%clk 0:02:33.9]} 13... Nxd5 {[%clk 0:03:00.3]}
14. Bxg7 {[%clk 0:02:24.6]} 14... Kxg7 {[%clk 0:03:00.6]} 15. exd5 {[%clk
0:02:23.8]} 15... a5 {[%clk 0:03:00.3]} 16. a3 {[%clk 0:02:23.4]} 16... Rc5
{[%clk 0:02:59.8]} 17. h4 {[%clk 0:02:15.6]} 17... b4 {[%clk 0:02:16.7]} 18.
axb4 {[%clk 0:02:14.2]} 18... axb4 {[%clk 0:02:16.9]} 19. Qxb4 {[%clk
0:02:13.6]} 19... Qa8 {[%clk 0:02:01.4]} 20. Kd2 {[%clk 0:02:07.4]} 20... Rb8
{[%clk 0:01:47.3]} 21. Qd4+ {[%clk 0:02:06.5]} 21... Kg8 {[%clk 0:01:45.9]} 22.
Ke3 {[%clk 0:01:57.9]} 22... e5 {[%clk 0:01:35]} 23. dxe6 {[%clk 0:01:51.5]}
23... Bxe6 {[%clk 0:01:35.1]} 24. Bxe6 {[%clk 0:01:48.2]} 24... Re5+ {[%clk
0:01:35.1]} 25. Kf2 {[%clk 0:01:46.9]} 25... Rxe6 {[%clk 0:01:35.3]} 26. Rhe1
{[%clk 0:01:39.1]} 26... Rbe8 {[%clk 0:01:29]} 27. Rxe6 {[%clk 0:01:32.3]} 27...
Rxe6 {[%clk 0:01:29]} 28. Re1 {[%clk 0:01:31.9]} 28... Rxe1 {[%clk 0:01:20.6]}
29. Kxe1 {[%clk 0:01:31.6]} 29... Qa1+ {[%clk 0:01:20.8]} 30. Kf2 {[%clk
0:01:31.5]} 30... Qc1 {[%clk 0:01:19.1]} 31. c4 {[%clk 0:01:28.8]} 31... Qc2+
{[%clk 0:01:06.3]} 32. Kg3 {[%clk 0:01:27.8]} 32... Qb3 {[%clk 0:01:04.5]} 33.
Qxd6 {[%clk 0:01:17.6]} 33... Qxc4 {[%clk 0:01:04.2]} 34. b4 {[%clk 0:01:14.1]}
34... h6 {[%clk 0:00:49]} 35. Qc5 {[%clk 0:01:04.7]} 35... Qe6 {[%clk
0:00:48.6]} 36. b5 {[%clk 0:01:01.9]} 36... Qe1+ {[%clk 0:00:48.5]} 37. Kh3
{[%clk 0:00:50.2]} 37... Qh1+ {[%clk 0:00:48.4]} 38. Kg3 {[%clk 0:00:42]} 38...
Qe1+ {[%clk 0:00:47.3]} 39. Kh3 {[%clk 0:00:34.8]} 39... Qh1+ {[%clk 0:00:47.3]}
40. Kg3 {[%clk 0:00:34.8]} 40... Qe1+ {[%clk 0:00:47.4]} 1/2-1/2

[Event "*** Titled Tuesday Blitz"]
[Site "Chess.com"]
[Date "2020.04.21"]
[Round "4"]
[White "BaMBoMaTTo"]
[Black "UmutErdemGunduz"]
[Result "1-0"]
[WhiteElo "2704"]
[BlackElo "2364"]
[TimeControl "180+1"]
[EndTime "10:39:09 PDT"]
[Termination "BaMBoMaTTo won by resignation"]

1. e4 {[%clk 0:02:59.2]} 1... e5 {[%clk 0:02:52.6]} 2. Nf3 {[%clk 0:02:58.7]}
2... Nc6 {[%clk 0:02:52.6]} 3. Bb5 {[%clk 0:02:58.4]} 3... a6 {[%clk 0:02:52.5]}
4. Ba4 {[%clk 0:02:58]} 4... Nf6 {[%clk 0:02:52.9]} 5. O-O {[%clk 0:02:57.8]}
5... Be7 {[%clk 0:02:53.4]} 6. Re1 {[%clk 0:02:57.5]} 6... b5 {[%clk 0:02:53.8]}
7. Bb3 {[%clk 0:02:57.5]} 7... O-O {[%clk 0:02:54.5]} 8. h3 {[%clk 0:02:57.5]}
8... Bb7 {[%clk 0:02:47.2]} 9. d3 {[%clk 0:02:56.4]} 9... d6 {[%clk 0:02:33.3]}
10. a3 {[%clk 0:02:55.4]} 10... h6 {[%clk 0:02:29.4]} 11. Nc3 {[%clk 0:02:50.5]}
11... Re8 {[%clk 0:02:20]} 12. Nd5 {[%clk 0:02:42.3]} 12... Bf8 {[%clk
0:02:12.9]} 13. Bd2 {[%clk 0:02:42.3]} 13... a5 {[%clk 0:02:01.9]} 14. a4 {[%clk
0:02:28.4]} 14... b4 {[%clk 0:01:56.1]} 15. c3 {[%clk 0:02:28.4]} 15... bxc3
{[%clk 0:01:43.6]} 16. bxc3 {[%clk 0:02:29.3]} 16... Ba6 {[%clk 0:01:41.8]} 17.
Nxf6+ {[%clk 0:02:24.5]} 17... Qxf6 {[%clk 0:01:40.6]} 18. Bd5 {[%clk
0:02:25.4]} 18... Bb7 {[%clk 0:01:26.3]} 19. Rb1 {[%clk 0:02:25.3]} 19... Rab8
{[%clk 0:01:24.5]} 20. Rxb7 {[%clk 0:02:25.1]} 20... Rxb7 {[%clk 0:01:22.1]} 21.
Bxc6 {[%clk 0:02:24.9]} 21... Reb8 {[%clk 0:01:22.8]} 22. Bxb7 {[%clk
0:02:24.7]} 22... Rxb7 {[%clk 0:01:23.7]} 23. Qc2 {[%clk 0:02:22.6]} 23... Qd8
{[%clk 0:01:13.2]} 24. Rb1 {[%clk 0:02:22]} 24... Qb8 {[%clk 0:01:13.6]} 25.
Rxb7 {[%clk 0:02:21.6]} 25... Qxb7 {[%clk 0:01:13.8]} 26. d4 {[%clk 0:02:21.7]}
26... exd4 {[%clk 0:01:11.2]} 27. cxd4 {[%clk 0:02:22.6]} 27... Qb6 {[%clk
0:01:10.4]} 28. Bc3 {[%clk 0:01:55]} 28... c5 {[%clk 0:01:06.9]} 29. d5 {[%clk
0:01:40.6]} 29... Qa6 {[%clk 0:00:43.4]} 30. Nd2 {[%clk 0:01:09.9]} 30... Be7
{[%clk 0:00:37]} 31. Qb1 {[%clk 0:00:59.7]} 31... Bg5 {[%clk 0:00:33.7]} 32. Qf1
{[%clk 0:00:57.6]} 1-0

[Event "*** Titled Tuesday Blitz"]
[Site "Chess.com"]
[Date "2020.04.21"]
[Round "4"]
[White "SerGo055"]
[Black "Andrii_Prydun"]
[Result "1-0"]
[WhiteElo "2571"]
[BlackElo "2345"]
[TimeControl "180+1"]
[EndTime "10:39:09 PDT"]
[Termination "SerGo055 won on time"]

1. d4 {[%clk 0:03:00.9]} 1... d6 {[%clk 0:02:59.7]} 2. Nf3 {[%clk 0:03:01.1]}
2... Nf6 {[%clk 0:02:59.2]} 3. c4 {[%clk 0:03:00.8]} 3... Nbd7 {[%clk
0:02:58.4]} 4. Nc3 {[%clk 0:03:00.5]} 4... e5 {[%clk 0:02:58.4]} 5. b3 {[%clk
0:03:00.2]} 5... Be7 {[%clk 0:02:53.7]} 6. e3 {[%clk 0:02:58.9]} 6... O-O {[%clk
0:02:50.7]} 7. Be2 {[%clk 0:02:59.2]} 7... Re8 {[%clk 0:02:48.2]} 8. O-O {[%clk
0:02:58.8]} 8... c6 {[%clk 0:02:43]} 9. Ba3 {[%clk 0:02:58.4]} 9... a6 {[%clk
0:02:23]} 10. dxe5 {[%clk 0:02:53.4]} 10... dxe5 {[%clk 0:02:22.2]} 11. Bxe7
{[%clk 0:02:54.3]} 11... Qxe7 {[%clk 0:02:22.2]} 12. Qc2 {[%clk 0:02:51.1]}
12... g6 {[%clk 0:01:46.9]} 13. Rfd1 {[%clk 0:02:48.7]} 13... Nc5 {[%clk
0:01:46]} 14. b4 {[%clk 0:02:48.7]} 14... Bf5 {[%clk 0:01:45.4]} 15. Qb2 {[%clk
0:02:45.1]} 15... Ncd7 {[%clk 0:01:40.5]} 16. c5 {[%clk 0:02:39.1]} 16... a5
{[%clk 0:01:36.9]} 17. a3 {[%clk 0:02:39]} 17... Bg4 {[%clk 0:01:04.2]} 18. h3
{[%clk 0:02:34.2]} 18... Bxf3 {[%clk 0:01:03.3]} 19. Bxf3 {[%clk 0:02:34.7]}
19... e4 {[%clk 0:01:03.1]} 20. Nxe4 {[%clk 0:02:16.7]} 20... Nxe4 {[%clk
0:01:03.9]} 21. Bxe4 {[%clk 0:02:16.4]} 21... Qxe4 {[%clk 0:01:04.7]} 22. Rxd7
{[%clk 0:02:15.9]} 22... axb4 {[%clk 0:01:05.1]} 23. Rxb7 {[%clk 0:01:50.9]}
23... bxa3 {[%clk 0:00:56.8]} 24. Rxa3 {[%clk 0:01:51.8]} 24... Rad8 {[%clk
0:00:55.5]} 25. Raa7 {[%clk 0:01:36.7]} 25... Rf8 {[%clk 0:00:19.2]} 26. Qf6
{[%clk 0:01:35.2]} 26... Rd1+ {[%clk 0:00:09]} 27. Kh2 {[%clk 0:01:32]} 27...
Qe8 {[%clk 0:00:08.8]} 28. Re7 {[%clk 0:01:18.2]} 28... Qb8+ {[%clk 0:00:08.9]}
29. Rac7 {[%clk 0:00:53.7]} 1-0

[Event "*** Titled Tuesday Blitz"]
[Site "Chess.com"]
[Date "2020.04.21"]
[Round "4"]
[White "plumalka"]
[Black "Rsnr"]
[Result "0-1"]
[WhiteElo "2430"]
[BlackElo "2786"]
[TimeControl "180+1"]
[EndTime "10:39:11 PDT"]
[Termination "Rsnr won by resignation"]

1. e4 {[%clk 0:03:00.9]} 1... c6 {[%clk 0:03:00.2]} 2. d4 {[%clk 0:03:00.7]}
2... d5 {[%clk 0:03:01.1]} 3. Nc3 {[%clk 0:03:00.6]} 3... dxe4 {[%clk
0:03:00.9]} 4. Nxe4 {[%clk 0:03:01.5]} 4... Bf5 {[%clk 0:03:01.5]} 5. Ng3 {[%clk
0:03:01.4]} 5... Bg6 {[%clk 0:03:02.2]} 6. h4 {[%clk 0:03:01.7]} 6... h6 {[%clk
0:03:02.6]} 7. h5 {[%clk 0:03:02.2]} 7... Bh7 {[%clk 0:03:02.8]} 8. Bd3 {[%clk
0:03:02.5]} 8... Bxd3 {[%clk 0:03:02.6]} 9. Qxd3 {[%clk 0:03:02.8]} 9... e6
{[%clk 0:03:03.5]} 10. Nf3 {[%clk 0:02:59.3]} 10... Nf6 {[%clk 0:03:04.1]} 11.
Bd2 {[%clk 0:02:59]} 11... c5 {[%clk 0:03:04.7]} 12. O-O-O {[%clk 0:02:46.2]}
12... Nc6 {[%clk 0:03:04.8]} 13. Qb5 {[%clk 0:02:28.4]} 13... Qb6 {[%clk
0:03:01.3]} 14. Qxb6 {[%clk 0:02:15.8]} 14... axb6 {[%clk 0:03:02.2]} 15. Kb1
{[%clk 0:02:15.1]} 15... cxd4 {[%clk 0:03:01.7]} 16. Rh4 {[%clk 0:01:48.1]}
16... O-O-O {[%clk 0:02:52.5]} 17. Ne4 {[%clk 0:01:00.9]} 17... Nd5 {[%clk
0:02:38.4]} 18. g4 {[%clk 0:00:57.4]} 18... Be7 {[%clk 0:02:27]} 19. Rh3 {[%clk
0:00:53.6]} 19... Nf6 {[%clk 0:02:10.2]} 20. Nxf6 {[%clk 0:00:51]} 20... Bxf6
{[%clk 0:02:11.1]} 21. Bc1 {[%clk 0:00:50.1]} 21... Rd5 {[%clk 0:02:10.9]} 22.
Nd2 {[%clk 0:00:47.8]} 22... b5 {[%clk 0:02:04]} 23. Ne4 {[%clk 0:00:44.7]}
23... Be7 {[%clk 0:02:04.6]} 24. f4 {[%clk 0:00:43.2]} 24... f5 {[%clk
0:01:59.8]} 25. gxf5 {[%clk 0:00:39.2]} 25... exf5 {[%clk 0:02:00.7]} 26. Nc3
{[%clk 0:00:37]} 26... Rc5 {[%clk 0:01:56.8]} 27. Ne2 {[%clk 0:00:37.2]} 27...
Bf6 {[%clk 0:01:56.4]} 28. a3 {[%clk 0:00:35]} 28... Re8 {[%clk 0:01:56.1]} 29.
Ng1 {[%clk 0:00:32.3]} 29... b4 {[%clk 0:01:44.9]} 30. a4 {[%clk 0:00:31.3]}
30... Re4 {[%clk 0:01:32.8]} 31. b3 {[%clk 0:00:29]} 31... Rc3 {[%clk
0:01:31.1]} 32. Rh2 {[%clk 0:00:25.2]} 32... d3 {[%clk 0:01:10.4]} 33. Rxd3
{[%clk 0:00:23.6]} 33... Rxd3 {[%clk 0:01:10]} 34. cxd3 {[%clk 0:00:24.5]} 34...
Re1 {[%clk 0:01:10.5]} 35. Nf3 {[%clk 0:00:24.2]} 35... Rf1 {[%clk 0:01:11]} 36.
Nd2 {[%clk 0:00:21.3]} 36... Rxf4 {[%clk 0:01:10.8]} 37. Nc4 {[%clk 0:00:21.2]}
37... Rf1 {[%clk 0:01:10]} 38. Kc2 {[%clk 0:00:20]} 38... Nd4+ {[%clk
0:01:09.2]} 39. Kb2 {[%clk 0:00:16.4]} 39... Nf3+ {[%clk 0:01:07.1]} 0-1

[Event "*** Titled Tuesday Blitz"]
[Site "Chess.com"]
[Date "2020.04.21"]
[Round "4"]
[White "GuerrieroFromLevant"]
[Black "doons21"]
[Result "1-0"]
[WhiteElo "2416"]
[BlackElo "2606"]
[TimeControl "180+1"]
[EndTime "10:39:11 PDT"]
[Termination "GuerrieroFromLevant won by resignation"]

1. e4 {[%clk 0:03:00.9]} 1... e6 {[%clk 0:02:59.5]} 2. d4 {[%clk 0:03:00.3]}
2... d5 {[%clk 0:02:59.8]} 3. exd5 {[%clk 0:02:58.1]} 3... exd5 {[%clk
0:02:59.3]} 4. Nf3 {[%clk 0:02:59]} 4... Nc6 {[%clk 0:02:58.7]} 5. Bb5 {[%clk
0:02:57.8]} 5... Bg4 {[%clk 0:02:58]} 6. O-O {[%clk 0:02:57]} 6... Bd6 {[%clk
0:02:57.6]} 7. Qe1+ {[%clk 0:02:44.2]} 7... Ne7 {[%clk 0:02:27.7]} 8. Ne5 {[%clk
0:02:42.6]} 8... Bd7 {[%clk 0:02:26.4]} 9. Nxd7 {[%clk 0:02:41.8]} 9... Qxd7
{[%clk 0:02:26.4]} 10. c4 {[%clk 0:02:39]} 10... Qf5 {[%clk 0:01:19]} 11. c5
{[%clk 0:02:23]} 11... Bf4 {[%clk 0:01:17.8]} 12. Bxf4 {[%clk 0:02:13.2]} 12...
Qxf4 {[%clk 0:01:17.8]} 13. Qe3 {[%clk 0:02:12.8]} 13... Qxe3 {[%clk 0:01:13.9]}
14. fxe3 {[%clk 0:02:13.7]} 14... O-O {[%clk 0:01:07.4]} 15. Nc3 {[%clk
0:02:11.7]} 15... Nd8 {[%clk 0:01:04.7]} 16. Bd7 {[%clk 0:02:07.8]} 16... c6
{[%clk 0:00:59.5]} 17. e4 {[%clk 0:02:03.4]} 17... dxe4 {[%clk 0:00:58.8]} 18.
Nxe4 {[%clk 0:02:04.3]} 18... Nd5 {[%clk 0:00:53.2]} 19. Nd6 {[%clk 0:02:01.5]}
19... Rb8 {[%clk 0:00:45.8]} 20. a3 {[%clk 0:01:52.9]} 20... g6 {[%clk
0:00:33.1]} 21. b4 {[%clk 0:01:49.3]} 21... Kg7 {[%clk 0:00:32.7]} 22. Rae1
{[%clk 0:01:46.7]} 22... b6 {[%clk 0:00:28.3]} 23. b5 {[%clk 0:01:35.2]} 23...
cxb5 {[%clk 0:00:23.4]} 24. c6 {[%clk 0:01:35.1]} 24... Nc7 {[%clk 0:00:21.7]}
25. Re7 {[%clk 0:01:33.5]} 25... a5 {[%clk 0:00:19.3]} 26. Be8 {[%clk
0:01:05.3]} 26... Nd5 {[%clk 0:00:18.2]} 27. c7 {[%clk 0:01:02.5]} 27... Nxc7
{[%clk 0:00:17.4]} 28. Rxc7 {[%clk 0:01:02.3]} 28... b4 {[%clk 0:00:18.3]} 29.
axb4 {[%clk 0:01:01.7]} 29... axb4 {[%clk 0:00:17.9]} 30. Bxf7 {[%clk
0:01:01.8]} 30... Kh6 {[%clk 0:00:10.8]} 31. Bd5 {[%clk 0:01:00.9]} 31... Rxf1+
{[%clk 0:00:10.1]} 32. Kxf1 {[%clk 0:01:01.8]} 32... b3 {[%clk 0:00:10.2]} 33.
Bxb3 {[%clk 0:01:01.2]} 33... b5 {[%clk 0:00:10.8]} 34. Rc8 {[%clk 0:01:00.6]}
34... Rb6 {[%clk 0:00:11]} 35. Rxd8 {[%clk 0:01:00.3]} 35... Rxd6 {[%clk
0:00:11.9]} 36. Rxd6 {[%clk 0:01:00.3]} 1-0